[Event "Titled Tuesday Blitz November 29 Early 2022"]
[White "Van Osch, Mees"]
[Black "Aarav Dengla"]
[WhiteFideId "1035967"]
[BlackFideId "45059756"]
[WhiteElo "2324"]
[BlackElo "2261"]
[Result "0-1"]
[Round "07"]
[TimeControl "180+1"]
[Date "2022.11.30"]
[WhiteClock "0:00:32"]
[BlackClock "0:00:13"]

1. e4 {[%clk 0:02:58]}  c5 {[%clk 0:02:17]} 2. Nf3 {[%clk 0:02:57]}  d6 {[%clk 0:02:16]} 3. d4 {[%clk 0:02:57]}  cxd4 {[%clk 0:02:17]} 4. Nxd4 {[%clk 0:02:58]}  Nf6 {[%clk 0:02:16]} 5. Nc3 {[%clk 0:02:58]}  a6 {[%clk 0:02:15]} 6. Nb3 {[%clk 0:02:58]}  e6 {[%clk 0:02:11]} 7. g4 {[%clk 0:02:58]}  b5 {[%clk 0:02:10]} 8. g5 {[%clk 0:02:58]}  Nfd7 {[%clk 0:02:09]} 9. Bg2 {[%clk 0:02:58]}  Bb7 {[%clk 0:02:09]} 10. f4 {[%clk 0:02:58]}  Be7 {[%clk 0:02:08]} 11. h4 {[%clk 0:02:57]}  h6 {[%clk 0:02:07]} 12. Be3 {[%clk 0:02:56]}  e5 {[%clk 0:02:05]} 13. g6 {[%clk 0:02:57]}  fxg6 {[%clk 0:02:02]} 14. Bd2 {[%clk 0:02:56]}  Bxh4+ {[%clk 0:02:00]} 15. Kf1 {[%clk 0:02:56]}  O-O {[%clk 0:01:58]} 16. Qg4 {[%clk 0:02:56]}  Be7 {[%clk 0:01:43]} 17. Qxg6 {[%clk 0:02:48]}  Qe8 {[%clk 0:01:32]} 18. Qxe8 {[%clk 0:02:46]}  Rxe8 {[%clk 0:01:33]} 19. Na5 {[%clk 0:02:46]}  Bc8 {[%clk 0:01:27]} 20. Nd5 {[%clk 0:02:45]}  Bd8 {[%clk 0:01:27]} 21. Nb3 {[%clk 0:02:39]}  Nc6 {[%clk 0:01:26]} 22. f5 {[%clk 0:02:37]}  Nf6 {[%clk 0:01:20]} 23. Nxf6+ {[%clk 0:02:29]}  Bxf6 {[%clk 0:01:20]} 24. Na5 {[%clk 0:02:25]}  Bd7 {[%clk 0:01:18]} 25. Rd1 {[%clk 0:02:22]}  Be7 {[%clk 0:01:11]} 26. c3 {[%clk 0:02:16]}  Nxa5 {[%clk 0:01:10]} 27. Bf3 {[%clk 0:02:15]}  Nc4 {[%clk 0:01:10]} 28. Bc1 {[%clk 0:02:15]}  Rf8 {[%clk 0:00:49]} 29. b3 {[%clk 0:02:13]}  Nb6 {[%clk 0:00:48]} 30. Rg1 {[%clk 0:02:10]}  Kh7 {[%clk 0:00:44]} 31. Bh5 {[%clk 0:02:10]}  d5 {[%clk 0:00:41]} 32. Be3 {[%clk 0:02:04]}  Rab8 {[%clk 0:00:39]} 33. Bxb6 {[%clk 0:02:03]}  Rxb6 {[%clk 0:00:40]} 34. Rxd5 {[%clk 0:02:01]}  Bxf5 {[%clk 0:00:32]} 35. Ke2 {[%clk 0:01:39]}  Bc8 {[%clk 0:00:21]} 36. Rxe5 {[%clk 0:01:35]}  Bg5 {[%clk 0:00:20]} 37. Rh1 {[%clk 0:01:21]}  Re6 {[%clk 0:00:17]} 38. Rc5 {[%clk 0:01:06]}  Rxe4+ {[%clk 0:00:16]} 39. Kd3 {[%clk 0:01:03]}  Re3+ {[%clk 0:00:17]} 40. Kc2 {[%clk 0:00:59]}  Rf2+ {[%clk 0:00:15]} 41. Kb1 {[%clk 0:00:59]}  Bf5+ {[%clk 0:00:14]} 42. Ka1 {[%clk 0:00:57]}  Bf6 {[%clk 0:00:14]} 43. Rc1 {[%clk 0:00:51]}  b4 {[%clk 0:00:14]} 44. Rxf5 {[%clk 0:00:34]}  Bxc3+ {[%clk 0:00:13]} 45. Rxc3 {[%clk 0:00:32]}  Re1+ {[%clk 0:00:13]} 46. Rc1 {[%clk 0:00:32]}  Rxc1# {[%clk 0:00:13]} 0-1


[Site "https://www.chess.com"]

[Event "Titled Tuesday Blitz November 29 Early 2022"]
[White "Vargas, Mauricio"]
[Black "Hartikainen, Jarmo"]
[WhiteFideId "4404572"]
[BlackFideId "503134"]
[WhiteElo "2025"]
[BlackElo "2208"]
[Result "0-1"]
[Round "07"]
[TimeControl "180+1"]
[Date "2022.11.30"]
[WhiteClock "0:00:02"]
[BlackClock "0:00:33"]

1. e4 {[%clk 0:02:59]}  c5 {[%clk 0:02:59]} 2. Nc3 {[%clk 0:02:58]}  Nc6 {[%clk 0:02:59]} 3. f4 {[%clk 0:02:59]}  e6 {[%clk 0:02:58]} 4. Nf3 {[%clk 0:03:00]}  d5 {[%clk 0:02:59]} 5. e5 {[%clk 0:03:00]}  Be7 {[%clk 0:02:57]} 6. Bb5 {[%clk 0:02:59]}  h5 {[%clk 0:02:57]} 7. Bxc6+ {[%clk 0:02:59]}  bxc6 {[%clk 0:02:57]} 8. O-O {[%clk 0:03:00]}  h4 {[%clk 0:02:57]} 9. h3 {[%clk 0:03:00]}  Nh6 {[%clk 0:02:57]} 10. d3 {[%clk 0:02:55]}  Nf5 {[%clk 0:02:56]} 11. b3 {[%clk 0:02:51]}  Ba6 {[%clk 0:02:54]} 12. Na4 {[%clk 0:02:50]}  c4 {[%clk 0:02:51]} 13. d4 {[%clk 0:02:46]}  cxb3 {[%clk 0:02:50]} 14. axb3 {[%clk 0:02:45]}  Bxf1 {[%clk 0:02:50]} 15. Qxf1 {[%clk 0:02:44]}  Ng3 {[%clk 0:02:41]} 16. Qe1 {[%clk 0:02:36]}  Qc7 {[%clk 0:02:31]} 17. b4 {[%clk 0:02:31]}  a5 {[%clk 0:02:25]} 18. Nc5 {[%clk 0:02:19]}  O-O {[%clk 0:02:06]} 19. bxa5 {[%clk 0:02:12]}  Ra7 {[%clk 0:01:52]} 20. Bd2 {[%clk 0:02:11]}  Rfa8 {[%clk 0:01:45]} 21. Bb4 {[%clk 0:02:08]}  Bf8 {[%clk 0:01:32]} 22. c3 {[%clk 0:02:07]}  Qb8 {[%clk 0:01:31]} 23. Ng5 {[%clk 0:01:55]}  Qb5 {[%clk 0:01:27]} 24. Qd1 {[%clk 0:01:51]}  Qe2 {[%clk 0:01:24]} 25. Qxe2 {[%clk 0:01:43]}  Nxe2+ {[%clk 0:01:23]} 26. Kf2 {[%clk 0:01:14]}  Nxf4 {[%clk 0:01:23]} 27. Kf3 {[%clk 0:01:10]}  Ng6 {[%clk 0:01:10]} 28. Kg4 {[%clk 0:01:04]}  Be7 {[%clk 0:01:08]} 29. Kh5 {[%clk 0:01:01]}  Nf4+ {[%clk 0:01:05]} 30. Kg4 {[%clk 0:00:53]}  Nxg2 {[%clk 0:01:04]} 31. Nf3 {[%clk 0:00:50]}  Ne3+ {[%clk 0:01:00]} 32. Kf4 {[%clk 0:00:41]}  Nc4 {[%clk 0:00:55]} 33. Kg4 {[%clk 0:00:36]}  Nxa5 {[%clk 0:00:53]} 34. Nxh4 {[%clk 0:00:32]}  Nc4 {[%clk 0:00:51]} 35. Rb1 {[%clk 0:00:26]}  Ra2 {[%clk 0:00:45]} 36. Nf3 {[%clk 0:00:25]}  Rb2 {[%clk 0:00:39]} 37. Rg1 {[%clk 0:00:18]}  Raa2 {[%clk 0:00:37]} 38. Nd3 {[%clk 0:00:02]}  Rg2+ {[%clk 0:00:33]} 0-1


[Site "https://www.chess.com"]

[Event "Titled Tuesday Blitz November 29 Early 2022"]
[White "Vlassov, Nikolai"]
[Black "Schut, Han"]
[WhiteFideId "4103360"]
[BlackFideId "1005561"]
[WhiteElo "2324"]
[BlackElo "2024"]
[Result "1-0"]
[Round "07"]
[TimeControl "180+1"]
[Date "2022.11.30"]
[WhiteClock "0:01:31"]
[BlackClock "0:01:11"]

1. e4 {[%clk 0:03:00]}  c5 {[%clk 0:02:58]} 2. c3 {[%clk 0:02:59]}  g6 {[%clk 0:02:57]} 3. d4 {[%clk 0:02:58]}  cxd4 {[%clk 0:02:58]} 4. cxd4 {[%clk 0:02:58]}  d5 {[%clk 0:02:58]} 5. e5 {[%clk 0:02:58]}  Nc6 {[%clk 0:02:58]} 6. Nc3 {[%clk 0:02:58]}  Nh6 {[%clk 0:02:58]} 7. Bf4 {[%clk 0:02:57]}  Bg7 {[%clk 0:02:54]} 8. Qd2 {[%clk 0:02:56]}  Nf5 {[%clk 0:02:54]} 9. Nf3 {[%clk 0:02:55]}  h5 {[%clk 0:02:52]} 10. O-O-O {[%clk 0:02:52]}  Be6 {[%clk 0:02:42]} 11. Kb1 {[%clk 0:02:51]}  Rc8 {[%clk 0:02:41]} 12. h3 {[%clk 0:02:43]}  a6 {[%clk 0:02:39]} 13. Na4 {[%clk 0:02:23]}  Na5 {[%clk 0:01:59]} 14. Nc5 {[%clk 0:02:16]}  Nc4 {[%clk 0:01:59]} 15. Bxc4 {[%clk 0:02:16]}  dxc4 {[%clk 0:01:59]} 16. Nxe6 {[%clk 0:02:10]}  fxe6 {[%clk 0:02:00]} 17. g4 {[%clk 0:02:10]}  Nh6 {[%clk 0:01:46]} 18. Qc2 {[%clk 0:02:05]}  c3 {[%clk 0:01:29]} 19. Qxg6+ {[%clk 0:02:01]}  Kd7 {[%clk 0:01:30]} 20. d5 {[%clk 0:01:38]}  c2+ {[%clk 0:01:29]} 21. Qxc2 {[%clk 0:01:38]}  Rxc2 {[%clk 0:01:26]} 22. dxe6+ {[%clk 0:01:38]}  Kxe6 {[%clk 0:01:26]} 23. Rxd8 {[%clk 0:01:38]}  Rxb2+ {[%clk 0:01:22]} 24. Kxb2 {[%clk 0:01:37]}  Rxd8 {[%clk 0:01:22]} 25. Ng5+ {[%clk 0:01:32]}  Kd7 {[%clk 0:01:11]} 26. Rd1+ {[%clk 0:01:31]}  Ke8 {[%clk 0:01:11]} 27. Rxd8+ {[%clk 0:01:31]}  Kxd8 {[%clk 0:01:11]} 28. Ne6+ {[%clk 0:01:31]} 1-0


[Site "https://www.chess.com"]

[Event "Titled Tuesday Blitz November 29 Early 2022"]
[White "Yano, William Jorge Froes"]
[Black "Kukula, Pawel"]
[WhiteFideId "2112949"]
[BlackFideId "1115081"]
[WhiteElo "2122"]
[BlackElo "2046"]
[Result "0-1"]
[Round "07"]
[TimeControl "180+1"]
[Date "2022.11.30"]
[WhiteClock "0:00:58"]
[BlackClock "0:01:23"]

1. e4 {[%clk 0:03:00]}  c5 {[%clk 0:02:57]} 2. Nf3 {[%clk 0:03:01]}  d6 {[%clk 0:02:57]} 3. Bb5+ {[%clk 0:03:01]}  Bd7 {[%clk 0:02:56]} 4. Bxd7+ {[%clk 0:03:02]}  Qxd7 {[%clk 0:02:57]} 5. O-O {[%clk 0:03:02]}  Nf6 {[%clk 0:02:57]} 6. Qe2 {[%clk 0:03:02]}  Nc6 {[%clk 0:02:56]} 7. Rd1 {[%clk 0:03:03]}  e6 {[%clk 0:02:55]} 8. c3 {[%clk 0:03:03]}  Be7 {[%clk 0:02:53]} 9. d4 {[%clk 0:03:04]}  cxd4 {[%clk 0:02:54]} 10. cxd4 {[%clk 0:03:05]}  d5 {[%clk 0:02:54]} 11. e5 {[%clk 0:03:03]}  Ne4 {[%clk 0:02:52]} 12. Nbd2 {[%clk 0:03:04]}  Nxd2 {[%clk 0:02:49]} 13. Bxd2 {[%clk 0:03:05]}  O-O {[%clk 0:02:46]} 14. h4 {[%clk 0:03:06]}  Rfc8 {[%clk 0:02:44]} 15. h5 {[%clk 0:03:02]}  h6 {[%clk 0:02:40]} 16. Rac1 {[%clk 0:03:00]}  Bf8 {[%clk 0:02:28]} 17. g4 {[%clk 0:02:55]}  Ne7 {[%clk 0:02:26]} 18. Qd3 {[%clk 0:02:49]}  a6 {[%clk 0:02:23]} 19. Kg2 {[%clk 0:02:44]}  Qb5 {[%clk 0:02:20]} 20. Qb1 {[%clk 0:02:10]}  Rxc1 {[%clk 0:02:14]} 21. Rxc1 {[%clk 0:02:10]}  Rc8 {[%clk 0:02:15]} 22. Rxc8 {[%clk 0:02:04]}  Nxc8 {[%clk 0:02:16]} 23. g5 {[%clk 0:02:04]}  Ne7 {[%clk 0:02:13]} 24. g6 {[%clk 0:02:04]}  fxg6 {[%clk 0:02:09]} 25. hxg6 {[%clk 0:02:05]}  Nf5 {[%clk 0:02:10]} 26. b3 {[%clk 0:01:54]}  Qe8 {[%clk 0:02:08]} 27. Qc2 {[%clk 0:01:44]}  Qxg6+ {[%clk 0:02:07]} 28. Kh1 {[%clk 0:01:30]}  Qh5+ {[%clk 0:02:05]} 29. Nh2 {[%clk 0:01:30]}  Nxd4 {[%clk 0:01:44]} 30. Qc8 {[%clk 0:01:14]}  Qd1+ {[%clk 0:01:26]} 31. Kg2 {[%clk 0:01:13]}  Qxd2 {[%clk 0:01:26]} 32. Qe8 {[%clk 0:01:02]}  Qg5+ {[%clk 0:01:25]} 33. Kf1 {[%clk 0:01:02]}  Qxe5 {[%clk 0:01:25]} 34. Qg6 {[%clk 0:00:58]}  Qxh2 {[%clk 0:01:23]} 0-1


[Site "https://www.chess.com"]

[Event "Titled Tuesday Blitz November 29 Early 2022"]
[White "Yuan, Qingyu"]
[Black "Eynullayev, Atilla"]
[WhiteFideId "8609772"]
[BlackFideId "13413570"]
[WhiteElo "2359"]
[BlackElo "2181"]
[Result "1/2-1/2"]
[Round "07"]
[TimeControl "180+1"]
[Date "2022.11.30"]
[WhiteClock "0:00:19"]
[BlackClock "0:00:20"]

1. e4 {[%clk 0:03:00]}  c5 {[%clk 0:02:59]} 2. Nf3 {[%clk 0:03:00]}  e6 {[%clk 0:03:00]} 3. d4 {[%clk 0:03:01]}  cxd4 {[%clk 0:03:00]} 4. Nxd4 {[%clk 0:03:02]}  a6 {[%clk 0:03:01]} 5. c4 {[%clk 0:03:02]}  Nf6 {[%clk 0:02:54]} 6. Nc3 {[%clk 0:03:01]}  Bb4 {[%clk 0:02:54]} 7. Qd3 {[%clk 0:02:59]}  d5 {[%clk 0:02:54]} 8. exd5 {[%clk 0:02:37]}  exd5 {[%clk 0:02:54]} 9. Be2 {[%clk 0:02:37]}  O-O {[%clk 0:02:40]} 10. O-O {[%clk 0:02:36]}  Nc6 {[%clk 0:02:25]} 11. Nxc6 {[%clk 0:02:18]}  bxc6 {[%clk 0:02:24]} 12. Bg5 {[%clk 0:02:19]}  Bxc3 {[%clk 0:02:18]} 13. bxc3 {[%clk 0:02:10]}  h6 {[%clk 0:02:05]} 14. Bh4 {[%clk 0:01:58]}  Be6 {[%clk 0:01:56]} 15. cxd5 {[%clk 0:01:43]}  Qxd5 {[%clk 0:01:56]} 16. Qe3 {[%clk 0:01:31]}  Ng4 {[%clk 0:01:36]} 17. Qg3 {[%clk 0:01:24]}  Qe5 {[%clk 0:01:07]} 18. Qxe5 {[%clk 0:00:58]}  Nxe5 {[%clk 0:01:07]} 19. Rfb1 {[%clk 0:00:50]}  Bc4 {[%clk 0:00:38]} 20. Bxc4 {[%clk 0:00:43]}  Nxc4 {[%clk 0:00:38]} 21. Rb4 {[%clk 0:00:43]}  Ne5 {[%clk 0:00:36]} 22. Rab1 {[%clk 0:00:28]}  Rfe8 {[%clk 0:00:31]} 23. h3 {[%clk 0:00:25]}  Nd3 {[%clk 0:00:22]} 24. Rd4 {[%clk 0:00:24]}  Nc5 {[%clk 0:00:20]} 25. Rc4 {[%clk 0:00:24]}  Re5 {[%clk 0:00:20]} 26. Bg3 {[%clk 0:00:23]}  Rd5 {[%clk 0:00:20]} 27. Rb6 {[%clk 0:00:20]}  Rc8 {[%clk 0:00:20]} 28. Kh2 {[%clk 0:00:19]}  Kf8 {[%clk 0:00:20]} 29. Bf4 {[%clk 0:00:19]}  Ke7 {[%clk 0:00:20]} 30. Be3 {[%clk 0:00:18]}  Kd6 {[%clk 0:00:21]} 31. Bd4 {[%clk 0:00:15]}  g5 {[%clk 0:00:21]} 32. a4 {[%clk 0:00:14]}  Rc7 {[%clk 0:00:16]} 33. a5 {[%clk 0:00:13]}  f5 {[%clk 0:00:16]} 34. Bxc5+ {[%clk 0:00:13]}  Rxc5 {[%clk 0:00:17]} 35. Rd4+ {[%clk 0:00:13]}  Ke5 {[%clk 0:00:16]} 36. Rxa6 {[%clk 0:00:11]}  Rxc3 {[%clk 0:00:16]} 37. Ra4 {[%clk 0:00:11]}  Rd3 {[%clk 0:00:09]} 38. Rb6 {[%clk 0:00:11]}  c5 {[%clk 0:00:09]} 39. a6 {[%clk 0:00:11]}  Rdd7 {[%clk 0:00:09]} 40. Rxh6 {[%clk 0:00:09]}  c4 {[%clk 0:00:09]} 41. Rb6 {[%clk 0:00:08]}  c3 {[%clk 0:00:10]} 42. Rb1 {[%clk 0:00:08]}  c2 {[%clk 0:00:10]} 43. Rc1 {[%clk 0:00:08]}  Rd1 {[%clk 0:00:11]} 44. Raa1 {[%clk 0:00:08]}  Rxc1 {[%clk 0:00:11]} 45. Rxc1 {[%clk 0:00:09]}  Kf4 {[%clk 0:00:10]} 46. a7 {[%clk 0:00:09]}  Rxa7 {[%clk 0:00:10]} 47. Rxc2 {[%clk 0:00:10]}  Ra5 {[%clk 0:00:10]} 48. Re2 {[%clk 0:00:10]}  g4 {[%clk 0:00:10]} 49. h4 {[%clk 0:00:10]}  Rb5 {[%clk 0:00:05]} 50. Re3 {[%clk 0:00:10]}  g3+ {[%clk 0:00:03]} 51. Rxg3 {[%clk 0:00:10]}  Rb2 {[%clk 0:00:04]} 52. Rf3+ {[%clk 0:00:10]}  Kg4 {[%clk 0:00:05]} 53. Kg1 {[%clk 0:00:08]}  Rb1+ {[%clk 0:00:05]} 54. Kh2 {[%clk 0:00:08]}  Rb2 {[%clk 0:00:06]} 55. Rh3 {[%clk 0:00:06]}  Rxf2 {[%clk 0:00:06]} 56. h5 {[%clk 0:00:07]}  Rd2 {[%clk 0:00:05]} 57. h6 {[%clk 0:00:08]}  Rd8 {[%clk 0:00:06]} 58. h7 {[%clk 0:00:08]}  Rh8 {[%clk 0:00:07]} 59. Kg1 {[%clk 0:00:08]}  Kg5 {[%clk 0:00:07]} 60. Kf2 {[%clk 0:00:09]}  Kg6 {[%clk 0:00:06]} 61. Kf3 {[%clk 0:00:08]}  Rxh7 {[%clk 0:00:07]} 62. Rg3+ {[%clk 0:00:08]}  Kf6 {[%clk 0:00:07]} 63. Rg8 {[%clk 0:00:09]}  Rg7 {[%clk 0:00:07]} 64. Rf8+ {[%clk 0:00:09]}  Rf7 {[%clk 0:00:07]} 65. Ra8 {[%clk 0:00:09]}  Rc7 {[%clk 0:00:07]} 66. Ra4 {[%clk 0:00:09]}  Rc3+ {[%clk 0:00:08]} 67. Kf4 {[%clk 0:00:09]}  Rc6 {[%clk 0:00:08]} 68. g3 {[%clk 0:00:09]}  Rd6 {[%clk 0:00:08]} 69. Rb4 {[%clk 0:00:09]}  Rc6 {[%clk 0:00:08]} 70. Kf3 {[%clk 0:00:10]}  Rc3+ {[%clk 0:00:08]} 71. Kg2 {[%clk 0:00:10]}  Rc8 {[%clk 0:00:07]} 72. Kh3 {[%clk 0:00:10]}  Kg5 {[%clk 0:00:07]} 73. Rb7 {[%clk 0:00:10]}  Rh8+ {[%clk 0:00:08]} 74. Kg2 {[%clk 0:00:10]}  Rc8 {[%clk 0:00:09]} 75. Rg7+ {[%clk 0:00:10]}  Kf6 {[%clk 0:00:09]} 76. Rd7 {[%clk 0:00:11]}  Rc2+ {[%clk 0:00:10]} 77. Kh3 {[%clk 0:00:11]}  Rc8 {[%clk 0:00:10]} 78. Rh7 {[%clk 0:00:10]}  Kg5 {[%clk 0:00:10]} 79. Rg7+ {[%clk 0:00:10]}  Kf6 {[%clk 0:00:10]} 80. Rh7 {[%clk 0:00:11]}  Kg5 {[%clk 0:00:11]} 81. Rh4 {[%clk 0:00:11]}  Rc3 {[%clk 0:00:10]} 82. Rf4 {[%clk 0:00:11]}  Rd3 {[%clk 0:00:10]} 83. Rc4 {[%clk 0:00:11]}  Rb3 {[%clk 0:00:10]} 84. Rd4 {[%clk 0:00:11]}  Rc3 {[%clk 0:00:09]} 85. Rb4 {[%clk 0:00:11]}  Rd3 {[%clk 0:00:09]} 86. Ra4 {[%clk 0:00:11]}  Rc3 {[%clk 0:00:10]} 87. Rd4 {[%clk 0:00:12]}  Rb3 {[%clk 0:00:10]} 88. Kg2 {[%clk 0:00:13]}  Rb2+ {[%clk 0:00:10]} 89. Kf3 {[%clk 0:00:13]}  Rb3+ {[%clk 0:00:11]} 90. Kf2 {[%clk 0:00:13]}  Rb2+ {[%clk 0:00:11]} 91. Kg1 {[%clk 0:00:14]}  Rb1+ {[%clk 0:00:11]} 92. Kh2 {[%clk 0:00:14]}  Rb2+ {[%clk 0:00:12]} 93. Kh3 {[%clk 0:00:15]}  Rb3 {[%clk 0:00:13]} 94. Rd8 {[%clk 0:00:15]}  Rb7 {[%clk 0:00:13]} 95. Rg8+ {[%clk 0:00:15]}  Kf6 {[%clk 0:00:13]} 96. Kg2 {[%clk 0:00:14]}  Rb2+ {[%clk 0:00:13]} 97. Kf3 {[%clk 0:00:14]}  Rb3+ {[%clk 0:00:14]} 98. Kf4 {[%clk 0:00:15]}  Rb4+ {[%clk 0:00:14]} 99. Ke3 {[%clk 0:00:15]}  Rb3+ {[%clk 0:00:15]} 100. Kf2 {[%clk 0:00:16]}  Rb2+ {[%clk 0:00:15]} 101. Kg1 {[%clk 0:00:16]}  Rb1+ {[%clk 0:00:16]} 102. Kh2 {[%clk 0:00:17]}  Rb2+ {[%clk 0:00:16]} 103. Kh3 {[%clk 0:00:18]}  Rb7 {[%clk 0:00:17]} 104. Rh8 {[%clk 0:00:18]}  Kg5 {[%clk 0:00:16]} 105. Rh4 {[%clk 0:00:16]}  Rb3 {[%clk 0:00:16]} 106. Rc4 {[%clk 0:00:16]}  Rd3 {[%clk 0:00:16]} 107. Rb4 {[%clk 0:00:16]}  Rc3 {[%clk 0:00:16]} 108. Rd4 {[%clk 0:00:17]}  Ra3 {[%clk 0:00:17]} 109. Rf4 {[%clk 0:00:17]}  Rc3 {[%clk 0:00:17]} 110. Kg2 {[%clk 0:00:17]}  Rc2+ {[%clk 0:00:17]} 111. Kf3 {[%clk 0:00:17]}  Rc3+ {[%clk 0:00:17]} 112. Kg2 {[%clk 0:00:18]}  Rc2+ {[%clk 0:00:18]} 113. Kg1 {[%clk 0:00:18]}  Rc1+ {[%clk 0:00:18]} 114. Kh2 {[%clk 0:00:18]}  Rc2+ {[%clk 0:00:19]} 115. Kh3 {[%clk 0:00:19]}  Rc3 {[%clk 0:00:19]} 116. Ra4 {[%clk 0:00:19]}  Rb3 {[%clk 0:00:20]} 117. Kg2 {[%clk 0:00:19]}  Rb2+ {[%clk 0:00:20]} 118. Kf1 {[%clk 0:00:19]} 1/2-1/2


[Site "https://www.chess.com"]

[Event "Titled Tuesday Blitz November 29 Early 2022"]
[White "Zaksaite, Salomeja"]
[Black "Koridze, Lile"]
[WhiteFideId "12801496"]
[BlackFideId "13612514"]
[WhiteElo "2079"]
[BlackElo "2050"]
[Result "1-0"]
[Round "07"]
[TimeControl "180+1"]
[Date "2022.11.30"]
[WhiteClock "0:01:45"]
[BlackClock "0:01:59"]

1. e4 {[%clk 0:02:57]}  c5 {[%clk 0:02:59]} 2. Nf3 {[%clk 0:02:55]}  d6 {[%clk 0:02:59]} 3. d4 {[%clk 0:02:55]}  cxd4 {[%clk 0:03:00]} 4. Nxd4 {[%clk 0:02:56]}  Nf6 {[%clk 0:02:59]} 5. Nc3 {[%clk 0:02:56]}  Nc6 {[%clk 0:02:59]} 6. Bc4 {[%clk 0:02:55]}  e6 {[%clk 0:02:50]} 7. Bb3 {[%clk 0:02:52]}  a6 {[%clk 0:02:48]} 8. Be3 {[%clk 0:02:50]}  Qc7 {[%clk 0:02:48]} 9. f4 {[%clk 0:02:49]}  b5 {[%clk 0:02:45]} 10. Qf3 {[%clk 0:02:48]}  Bb7 {[%clk 0:02:45]} 11. a3 {[%clk 0:02:45]}  O-O-O {[%clk 0:02:35]} 12. O-O {[%clk 0:02:32]}  d5 {[%clk 0:02:20]} 13. exd5 {[%clk 0:02:28]}  Nxd4 {[%clk 0:02:15]} 14. Bxd4 {[%clk 0:02:28]}  Nxd5 {[%clk 0:02:16]} 15. Nxd5 {[%clk 0:02:25]}  Bxd5 {[%clk 0:02:16]} 16. Bxd5 {[%clk 0:02:24]}  Rxd5 {[%clk 0:02:16]} 17. Be5 {[%clk 0:02:23]}  Qb6+ {[%clk 0:02:04]} 18. Kh1 {[%clk 0:02:19]}  f6 {[%clk 0:02:03]} 19. Bc3 {[%clk 0:01:50]}  Bc5 {[%clk 0:01:59]} 20. a4 {[%clk 0:01:46]}  Bb4 {[%clk 0:01:59]} 21. Bxb4 {[%clk 0:01:45]} 1-0


[Site "https://www.chess.com"]

[Event "Titled Tuesday Blitz November 29 Early 2022"]
[White "Zatonskih, Anna"]
[Black "Sharifov, Mekhriddin"]
[WhiteFideId "14101572"]
[BlackFideId "14701545"]
[WhiteElo "2362"]
[BlackElo "2109"]
[Result "0-1"]
[Round "07"]
[TimeControl "180+1"]
[Date "2022.11.30"]
[WhiteClock "0:00:02"]
[BlackClock "0:00:07"]

1. d4 {[%clk 0:03:00]}  Nf6 {[%clk 0:03:00]} 2. c4 {[%clk 0:03:00]}  e6 {[%clk 0:02:59]} 3. Nc3 {[%clk 0:03:00]}  Bb4 {[%clk 0:02:57]} 4. Qc2 {[%clk 0:03:00]}  d5 {[%clk 0:02:56]} 5. a3 {[%clk 0:02:57]}  Bxc3+ {[%clk 0:02:55]} 6. Qxc3 {[%clk 0:02:58]}  c5 {[%clk 0:02:55]} 7. dxc5 {[%clk 0:02:56]}  O-O {[%clk 0:02:53]} 8. cxd5 {[%clk 0:02:42]}  Nxd5 {[%clk 0:02:52]} 9. Qc2 {[%clk 0:02:41]}  Nc6 {[%clk 0:02:46]} 10. Nf3 {[%clk 0:02:39]}  h6 {[%clk 0:02:28]} 11. e3 {[%clk 0:02:35]}  Bd7 {[%clk 0:02:16]} 12. Bc4 {[%clk 0:02:24]}  Qa5+ {[%clk 0:02:13]} 13. Bd2 {[%clk 0:02:13]}  Qxc5 {[%clk 0:02:12]} 14. b4 {[%clk 0:02:11]}  Qb6 {[%clk 0:01:54]} 15. Bxd5 {[%clk 0:01:53]}  exd5 {[%clk 0:01:55]} 16. O-O {[%clk 0:01:53]}  Rac8 {[%clk 0:01:54]} 17. Qd3 {[%clk 0:01:50]}  Ne7 {[%clk 0:01:53]} 18. Nd4 {[%clk 0:01:43]}  Rc4 {[%clk 0:01:48]} 19. Rfb1 {[%clk 0:00:57]}  Rfc8 {[%clk 0:01:45]} 20. b5 {[%clk 0:00:56]}  Ng6 {[%clk 0:01:40]} 21. a4 {[%clk 0:00:49]}  Qf6 {[%clk 0:01:39]} 22. Bb4 {[%clk 0:00:40]}  Ne5 {[%clk 0:01:26]} 23. Qe2 {[%clk 0:00:35]}  Qg6 {[%clk 0:01:26]} 24. f4 {[%clk 0:00:20]}  Nd3 {[%clk 0:00:51]} 25. Be1 {[%clk 0:00:18]}  Nxf4 {[%clk 0:00:51]} 26. exf4 {[%clk 0:00:15]}  Rxd4 {[%clk 0:00:51]} 27. Bg3 {[%clk 0:00:15]}  h5 {[%clk 0:00:44]} 28. Qf2 {[%clk 0:00:13]}  Rdc4 {[%clk 0:00:40]} 29. Re1 {[%clk 0:00:12]}  Rc2 {[%clk 0:00:38]} 30. Re2 {[%clk 0:00:13]}  Rxe2 {[%clk 0:00:33]} 31. Qxe2 {[%clk 0:00:14]}  Rc2 {[%clk 0:00:33]} 32. Qf3 {[%clk 0:00:12]}  Bf5 {[%clk 0:00:32]} 33. Bf2 {[%clk 0:00:11]}  Be4 {[%clk 0:00:31]} 34. Qg3 {[%clk 0:00:11]}  Qf6 {[%clk 0:00:26]} 35. Rd1 {[%clk 0:00:11]}  Rc3 {[%clk 0:00:24]} 36. Qg5 {[%clk 0:00:10]}  Qxg5 {[%clk 0:00:12]} 37. fxg5 {[%clk 0:00:11]}  Rc4 {[%clk 0:00:10]} 38. Bxa7 {[%clk 0:00:10]}  Rxa4 {[%clk 0:00:10]} 39. Bd4 {[%clk 0:00:11]}  Rb4 {[%clk 0:00:10]} 40. b6 {[%clk 0:00:11]}  Kh7 {[%clk 0:00:10]} 41. Rd2 {[%clk 0:00:11]}  Kg6 {[%clk 0:00:10]} 42. h4 {[%clk 0:00:11]}  Kf5 {[%clk 0:00:09]} 43. Bxg7 {[%clk 0:00:10]}  Rxb6 {[%clk 0:00:09]} 44. Bd4 {[%clk 0:00:09]}  Rb1+ {[%clk 0:00:09]} 45. Kf2 {[%clk 0:00:10]}  Kg4 {[%clk 0:00:10]} 46. Rb2 {[%clk 0:00:09]}  Rxb2+ {[%clk 0:00:09]} 47. Bxb2 {[%clk 0:00:09]}  Kxh4 {[%clk 0:00:10]} 48. Bf6 {[%clk 0:00:09]}  Kg4 {[%clk 0:00:10]} 49. g3 {[%clk 0:00:09]}  Kf5 {[%clk 0:00:10]} 50. Ke3 {[%clk 0:00:09]}  b5 {[%clk 0:00:08]} 51. Be7 {[%clk 0:00:08]}  Ke6 {[%clk 0:00:07]} 52. Bc5 {[%clk 0:00:07]}  Kf5 {[%clk 0:00:08]} 53. Be7 {[%clk 0:00:07]}  Kg4 {[%clk 0:00:08]} 54. Kf2 {[%clk 0:00:06]}  d4 {[%clk 0:00:09]} 55. Bc5 {[%clk 0:00:05]}  d3 {[%clk 0:00:09]} 56. Bb4 {[%clk 0:00:06]}  Kxg5 {[%clk 0:00:07]} 57. Ke3 {[%clk 0:00:06]}  f5 {[%clk 0:00:08]} 58. Bd2 {[%clk 0:00:05]}  Kg4 {[%clk 0:00:08]} 59. Kf2 {[%clk 0:00:06]}  Bd5 {[%clk 0:00:07]} 60. Bc3 {[%clk 0:00:04]}  f4 {[%clk 0:00:05]} 61. gxf4 {[%clk 0:00:03]}  Kxf4 {[%clk 0:00:06]} 62. Bd2+ {[%clk 0:00:03]}  Kg4 {[%clk 0:00:06]} 63. Ke3 {[%clk 0:00:02]}  h4 {[%clk 0:00:07]} 64. Kxd3 {[%clk 0:00:02]}  h3 {[%clk 0:00:07]} 0-1


[Site "https://www.chess.com"]